fUST/lending_fUST_20250719
["ID","MTS","AMOUNT","RATE_DAILY","PERIOD"]
[373277037,1752927057845,-460.0,0.00018649,2]
[373277039,1752927057855,-460.0,0.00018649,2]
[373277041,1752927057865,-460.0,0.00018649,2]
[373277043,1752927057875,-829.12,0.00018649,2]
[373277045,1752927057884,-460.0,0.0001865,2]
[373277047,1752927057894,-1695.29,0.0001865,2]
[373277049,1752927057904,-151.0,0.0001865,2]
[373277051,1752927057913,-188.673504,0.0001865,2]
[373277053,1752927057923,-188.673504,0.0001865,2]
[373277056,1752927057932,-460.0,0.0001865,2]
[373277058,1752927057942,-460.0,0.0001865,2]
[373277060,1752927057951,-460.0,0.0001865,2]
[373277062,1752927057962,-460.0,0.0001865,2]
[373277064,1752927057971,-1501.2,0.0001865,2]
[373277066,1752927057981,-1105.49,0.0001865,2]
[373277068,1752927057990,-571.41,0.0001865,2]
[373277070,1752927057999,-1573.16,0.0001865,2]
[373277072,1752927058008,-460.0,0.0001865,2]
[373277073,1752927058018,-1549.28,0.0001865,2]
[373277076,1752927058028,-151.0,0.00018728,2]
[373277078,1752927058037,-207.4,0.00018728,2]
[373277079,1752927058047,-460.0,0.00018749,2]
[373277081,1752927058056,-460.0,0.00018749,2]
[373277084,1752927058066,-460.0,0.00018749,2]
[373277086,1752927058075,-460.0,0.00018749,2]
[373277088,1752927058084,-460.0,0.00018749,2]
[373277090,1752927058094,-460.0,0.00018749,2]
[373277092,1752927058103,-460.0,0.00018749,2]
[373277094,1752927058113,-460.0,0.00018749,2]
[373277096,1752927058122,-460.0,0.00018749,2]
[373277098,1752927058131,-460.0,0.00018749,2]
[373277100,1752927058140,-460.0,0.00018749,2]
[373277102,1752927058150,-460.0,0.00018749,2]
[373277104,1752927058159,-151.0,0.0001875,2]
[373277105,1752927058168,-460.0,0.0001875,2]
[373277107,1752927058177,-460.0,0.0001875,2]
[373277109,1752927058187,-771.83,0.00018751,2]
[373277111,1752927058197,-260.0,0.00018787,2]
[373277113,1752927058206,-5819.01530007,0.00018831,2]
[373277115,1752927058215,-2872.15274685,0.000189,2]
[373277117,1752927058225,-460.0,0.00018921,2]
[373277119,1752927058234,-460.0,0.00018921,2]
[373277122,1752927058244,-460.0,0.00018921,2]
[373277124,1752927058253,-1226.27,0.00018921,2]
[373277126,1752927058263,-3070.5,0.00018921,2]
[373277128,1752927058273,-460.0,0.00018921,2]
[373277130,1752927058282,-460.0,0.00018921,2]
[373277132,1752927058292,-460.0,0.00018922,2]
[373277134,1752927058301,-460.0,0.00018922,2]
[373277136,1752927058311,-3208.37,0.00018922,2]
[373277138,1752927058320,-484.39,0.00018922,2]
[373277140,1752927058329,-460.0,0.00018922,2]
[373277142,1752927058339,-460.0,0.00018922,2]
[373277144,1752927058348,-1935.27,0.00018922,2]
[373277146,1752927058357,-989.97,0.00018922,2]
[373277148,1752927058367,-460.0,0.00018922,2]
[373277150,1752927058376,-978.7,0.00018922,2]
[373277152,1752927058386,-460.0,0.00018922,2]
[373277154,1752927058395,-460.0,0.00018922,2]
[373277156,1752927058405,-460.0,0.00018922,2]
[373277158,1752927058414,-521.57,0.00018922,2]
[373277160,1752927058423,-460.0,0.00018923,2]
[373277162,1752927058432,-460.0,0.00018923,2]
[373277163,1752927058441,-460.0,0.00018923,2]
[373277165,1752927058451,-460.0,0.00018923,2]
[373277167,1752927058460,-460.0,0.00018923,2]
[373277169,1752927058469,-460.0,0.00018923,2]
[373277171,1752927058478,-460.0,0.00018923,2]
[373277173,1752927058488,-460.0,0.00018923,2]
[373277175,1752927058497,-460.0,0.00018923,2]
[373277177,1752927058507,-460.0,0.00018923,2]
[373277179,1752927058517,-460.0,0.00018923,2]
[373277181,1752927058527,-460.0,0.00018923,2]
[373277183,1752927058536,-460.0,0.00018923,2]
[373277185,1752927058546,-460.0,0.00018923,2]
[373277187,1752927058555,-406.62575338,0.00018923,2]
[373277189,1752927058565,-460.0,0.00018923,2]
[373277191,1752927058575,-460.0,0.00018923,2]
[373277193,1752927058587,-460.0,0.00018923,2]
[373277195,1752927058596,-460.0,0.00018923,2]
[373277197,1752927058605,-460.0,0.00018923,2]
[373277199,1752927058615,-460.0,0.00018923,2]
[373277201,1752927058625,-594.06,0.00018923,2]
[373277203,1752927058634,-460.0,0.00018923,2]
[373277205,1752927058643,-460.0,0.00018923,2]
[373277207,1752927058653,-460.0,0.00018923,2]
[373277209,1752927058663,-578.82,0.00018923,2]
[373277211,1752927058673,-460.0,0.00018923,2]
[373277213,1752927058682,-460.0,0.00018923,2]
[373277215,1752927058691,-460.0,0.00018923,2]
[373277217,1752927058701,-460.0,0.00018923,2]
[373277218,1752927058711,-460.0,0.00018923,2]
[373277220,1752927058720,-460.0,0.00018923,2]
[373277222,1752927058730,-460.0,0.00018923,2]
[373277224,1752927058739,-460.0,0.00018923,2]
[373277226,1752927058749,-460.0,0.00018923,2]
[373277228,1752927058758,-460.0,0.00018923,2]
[373277230,1752927058769,-2812.62,0.00018923,2]
[373277232,1752927058779,-460.0,0.00018923,2]
[373277234,1752927058789,-460.0,0.00018923,2]
[373277236,1752927058798,-460.0,0.00018923,2]
[373277238,1752927058807,-829.12,0.00018923,2]
[373277240,1752927058816,-460.0,0.00018924,2]
[373277242,1752927058825,-1695.29,0.00018924,2]
[373277244,1752927058835,-460.0,0.00018924,2]
[373277246,1752927058845,-460.0,0.00018924,2]
[373277248,1752927058854,-460.0,0.00018924,2]
[373277250,1752927058863,-460.0,0.00018924,2]
[373277252,1752927058873,-1501.2,0.00018924,2]
[373277254,1752927058882,-1105.49,0.00018924,2]
[373277256,1752927058892,-571.41,0.00018924,2]
[373277258,1752927058901,-1573.16,0.00018924,2]
[373277260,1752927058910,-460.0,0.00018924,2]
[373277262,1752927058919,-1549.28,0.00018924,2]
[373277264,1752927058928,-152.15572667,0.00018928,2]
[373277266,1752927058937,-500.0,0.00018928,2]
[373277268,1752927058947,-151.16040528,0.00018928,2]
[373277270,1752927058956,-500.0,0.00018928,2]
[373277272,1752927058966,-500.0,0.00018928,2]
[373277274,1752927058975,-500.0,0.00018994,2]
[373277276,1752927058985,-460.0,0.00019023,2]
[373277278,1752927058995,-460.0,0.00019023,2]
[373277280,1752927059004,-460.0,0.00019023,2]
[373277282,1752927059013,-460.0,0.00019023,2]
[373277283,1752927059022,-517.48178713,0.00019023,2]
[373277285,1752927059032,-192.01727641,0.00019023,2]
[373277287,1752927059041,-460.0,0.00019023,2]
[373277290,1752927059051,-333.35421646,0.00019023,2]
[373277291,1752927059061,-460.0,0.00019023,2]
[373277293,1752927059071,-460.0,0.00019024,2]
[373277295,1752927059080,-771.83,0.00019025,2]
[373277297,1752927059090,-151.0,0.00019025,2]
[373277299,1752927059099,-151.0,0.00019025,2]
[373277301,1752927059109,-151.0,0.00019025,2]
[373277303,1752927059119,-151.0,0.00019025,2]
[373277305,1752927059129,-289.654597,0.00019072,2]
[373277307,1752927059138,-1500.0,0.00019106,2]
[373277309,1752927059148,-1500.0,0.00019106,2]
[373277311,1752927059158,-1500.0,0.00019106,2]
[373277313,1752927059167,-1500.0,0.00019106,2]
[373277315,1752927059176,-174.63255657,0.00019106,2]
[373277317,1752927059186,-571.37948771,0.00019106,2]
[373277319,1752927059196,-5819.01530007,0.00019107,2]
[373277321,1752927059206,-5000.0,0.00019178,2]
[373277323,1752927059215,-889.78529278,0.00019178,2]
[373277325,1752927059225,-666.0,0.00019178,2]
[373277338,1752927059234,-425.859505,0.00019178,2]
[373277340,1752927059347,-11254.10257877,0.00019185,2]
[373277342,1752927059357,-500.0,0.0001919,2]
[373277344,1752927059366,-500.0,0.0001919,2]
[373277346,1752927059376,-151.0,0.00019191,2]
[373277348,1752927059385,-151.0,0.00019191,2]
[373277350,1752927059395,-151.0,0.00019191,2]
[373277352,1752927059404,-460.0,0.00019195,2]
[373277354,1752927059413,-460.0,0.00019195,2]
[373277356,1752927059423,-461.55999689,0.00019195,2]
[373277358,1752927059433,-1226.27,0.00019195,2]
[373277360,1752927059443,-3070.5,0.00019195,2]
[373277362,1752927059452,-460.0,0.00019195,2]
[373277364,1752927059462,-460.0,0.00019195,2]
[373277366,1752927059471,-460.0,0.00019196,2]
[373277368,1752927059481,-460.0,0.00019196,2]
[373277370,1752927059491,-3208.37,0.00019196,2]
[373277372,1752927059500,-484.39,0.00019196,2]
[373277374,1752927059511,-460.0,0.00019196,2]
[373277376,1752927059521,-460.0,0.00019196,2]
[373277378,1752927059531,-1935.27,0.00019196,2]
[373277380,1752927059540,-989.97,0.00019196,2]
[373277382,1752927059550,-460.0,0.00019196,2]
[373277384,1752927059560,-978.7,0.00019196,2]
[373277386,1752927059570,-460.0,0.00019196,2]
[373277388,1752927059582,-460.0,0.00019196,2]
[373277390,1752927059592,-460.0,0.00019196,2]
[373277392,1752927059601,-521.57,0.00019196,2]
[373277394,1752927059611,-460.0,0.00019197,2]
[373277396,1752927059621,-460.0,0.00019197,2]
[373277398,1752927059631,-460.0,0.00019197,2]
[373277400,1752927059641,-460.0,0.00019197,2]
[373277402,1752927059651,-460.0,0.00019197,2]
[373277404,1752927059661,-460.0,0.00019197,2]
[373277406,1752927059670,-460.0,0.00019197,2]
[373277408,1752927059680,-460.0,0.00019197,2]
[373277410,1752927059690,-460.0,0.00019197,2]
[373277412,1752927059700,-460.0,0.00019197,2]
[373277414,1752927059709,-460.0,0.00019197,2]
[373277416,1752927059719,-460.0,0.00019197,2]
[373277418,1752927059728,-460.0,0.00019197,2]
[373277420,1752927059738,-460.0,0.00019197,2]
[373277422,1752927059747,-460.0,0.00019197,2]
[373277424,1752927059756,-460.0,0.00019197,2]
[373277426,1752927059765,-460.0,0.00019197,2]
[373277428,1752927059775,-594.06,0.00019197,2]
[373277429,1752927059785,-460.0,0.00019197,2]
[373277431,1752927059794,-460.0,0.00019197,2]
[373277433,1752927059804,-460.0,0.00019197,2]
[373277435,1752927059814,-578.82,0.00019197,2]
[373277437,1752927059824,-460.0,0.00019197,2]
[373277440,1752927059836,-460.0,0.00019197,2]
[373277441,1752927059845,-460.0,0.00019197,2]
[373277443,1752927059855,-460.0,0.00019197,2]
[373277445,1752927059866,-460.0,0.00019197,2]
[373277447,1752927059876,-460.0,0.00019197,2]
[373277449,1752927059886,-460.0,0.00019197,2]
[373277451,1752927059897,-460.0,0.00019197,2]
[373277453,1752927059907,-460.0,0.00019197,2]
[373277455,1752927059917,-2812.62,0.00019197,2]
[373277457,1752927059927,-460.0,0.00019197,2]
[373277459,1752927059938,-460.0,0.00019197,2]
[373277461,1752927059947,-460.0,0.00019197,2]
[373277463,1752927059963,-829.12,0.00019197,2]
[373277465,1752927059973,-1695.29,0.00019198,2]
[373277467,1752927059985,-460.0,0.00019198,2]
[373277469,1752927059995,-460.0,0.00019198,2]
[373277471,1752927060004,-460.0,0.00019198,2]
[373277473,1752927060014,-1501.2,0.00019198,2]
[373277475,1752927060023,-1105.49,0.00019198,2]
[373277477,1752927060033,-571.41,0.00019198,2]
[373277479,1752927060044,-1573.16,0.00019198,2]
[373277481,1752927060054,-460.0,0.00019198,2]
[373277482,1752927060063,-1549.28,0.00019198,2]
[373277484,1752927060073,-460.0,0.00019297,2]
[373277486,1752927060083,-460.0,0.00019297,2]
[373277488,1752927060092,-460.0,0.00019297,2]
[373277490,1752927060102,-151.0,0.00019297,2]
[373277492,1752927060111,-460.0,0.00019297,2]
[373277494,1752927060121,-460.0,0.00019297,2]
[373277496,1752927060131,-151.0,0.00019297,2]
[373277498,1752927060141,-151.0,0.00019297,2]
[373277500,1752927060151,-179.000455,0.00019297,2]
[373277502,1752927060160,-179.000455,0.00019297,2]
[373277504,1752927060170,-951.403261,0.00019297,2]
[373277506,1752927060179,-951.403261,0.00019297,2]
[373277508,1752927060188,-460.0,0.00019297,2]
[373277510,1752927060198,-439.80618325,0.00019298,2]
[373277512,1752927060211,-771.83,0.00019299,2]
[373277514,1752927060220,-151.0,0.00019329,2]
[373277516,1752927060230,-151.0,0.00019329,2]
[373277518,1752927060239,-151.0,0.00019329,2]
[373277520,1752927060249,-151.0,0.00019329,2]
[373277522,1752927060259,-86629.29424444,0.00019329,2]
[373277524,1752927060269,-360.0,0.00019335,2]
[373277526,1752927060279,-500.0,0.00019373,2]
[373277527,1752927060290,-347.65761145,0.00019373,2]
[373277528,1752927060300,-500.0,0.00019373,2]
[373277529,1752927060309,-500.0,0.00019373,2]
[373277530,1752927060319,-500.0,0.00019373,2]
[373277531,1752927060329,-500.0,0.00019373,2]
[373277532,1752927060338,-500.0,0.00019373,2]
[373277533,1752927060348,-500.0,0.00019373,2]
[373277534,1752927060357,-158.1691832,0.00019373,2]
[373277535,1752927060367,-158.17056156,0.00019373,2]
[373277536,1752927060376,-500.0,0.00019373,2]
[373277537,1752927060385,-5819.01530007,0.00019383,2]
[373277538,1752927060395,-151.0,0.00019383,2]
[373277539,1752927060405,-188.673504,0.00019383,2]
[373277540,1752927060414,-188.673504,0.00019383,2]
[373277541,1752927060424,-448.84,0.00019469,2]
[373277542,1752927060433,-460.0,0.00019469,2]
[373277543,1752927060442,-1226.27,0.00019469,2]
[373277544,1752927060455,-3070.5,0.00019469,2]
[373277545,1752927060464,-200.44819275,0.00019469,2]
[373277546,1752927060473,-460.0,0.00019469,2]
[373277547,1752927060482,-449.38642602,0.0001947,2]
[373277548,1752927060492,-460.0,0.0001947,2]
[373277549,1752927060501,-3208.37,0.0001947,2]
[373277550,1752927060511,-484.39,0.0001947,2]
[373277552,1752927060520,-460.0,0.0001947,2]
[373277553,1752927060529,-460.0,0.0001947,2]
[373277555,1752927060539,-1935.27,0.0001947,2]
[373277557,1752927060548,-989.97,0.0001947,2]
[373277559,1752927060558,-460.0,0.0001947,2]
[373277561,1752927060567,-978.7,0.0001947,2]
[373277563,1752927060578,-460.0,0.0001947,2]
[373277565,1752927060589,-460.0,0.0001947,2]
[373277567,1752927060598,-460.0,0.0001947,2]
[373277569,1752927060607,-521.57,0.0001947,2]
[373277571,1752927060618,-460.0,0.00019471,2]
[373277573,1752927060627,-460.0,0.00019471,2]
[373277575,1752927060637,-460.0,0.00019471,2]
[373277577,1752927060646,-460.0,0.00019471,2]
[373277579,1752927060657,-460.0,0.00019471,2]
[373277581,1752927060667,-460.0,0.00019471,2]
[373277583,1752927060676,-460.0,0.00019471,2]
[373277585,1752927060686,-460.0,0.00019471,2]
[373277587,1752927060695,-600.78457858,0.00019471,2]
[373277589,1752927060707,-460.0,0.00019471,2]
[373277591,1752927060717,-460.0,0.00019471,2]
[373277593,1752927060726,-460.0,0.00019471,2]
[373277595,1752927060736,-460.0,0.00019471,2]
[373277597,1752927060745,-219.06,0.00019471,2]
[373277599,1752927060755,-460.0,0.00019471,2]
[373277601,1752927060765,-460.0,0.00019471,2]
[373277603,1752927060774,-460.0,0.00019471,2]
[373277605,1752927060784,-594.06,0.00019471,2]
[373277607,1752927060794,-460.0,0.00019471,2]
[373277609,1752927060803,-460.0,0.00019471,2]
[373277611,1752927060812,-460.0,0.00019471,2]
[373277613,1752927060822,-578.82,0.00019471,2]
[373277615,1752927060831,-460.0,0.00019471,2]
[373277617,1752927060840,-460.0,0.00019471,2]
[373277619,1752927060849,-460.0,0.00019471,2]
[373277621,1752927060859,-460.0,0.00019471,2]
[373277623,1752927060868,-289.58584627,0.00019471,2]
[373277625,1752927060878,-460.0,0.00019471,2]
[373277627,1752927060888,-460.0,0.00019471,2]
[373277629,1752927060898,-460.0,0.00019471,2]
[373277631,1752927060907,-2812.62,0.00019471,2]
[373277633,1752927060917,-460.0,0.00019471,2]
[373277635,1752927060927,-460.0,0.00019471,2]
[373277637,1752927060937,-460.0,0.00019471,2]
[373277639,1752927060947,-460.0,0.00019471,2]
[373277641,1752927060958,-829.12,0.00019471,2]
[373277643,1752927060968,-1695.29,0.00019472,2]
[373277645,1752927060977,-460.0,0.00019472,2]
[373277647,1752927060987,-460.0,0.00019472,2]
[373277649,1752927060998,-1501.2,0.00019472,2]
[373277651,1752927061007,-1105.49,0.00019472,2]
[373277653,1752927061017,-571.41,0.00019472,2]
[373277655,1752927061026,-1573.16,0.00019472,2]
[373277657,1752927061036,-460.0,0.00019472,2]
[373277659,1752927061046,-1549.28,0.00019472,2]
[373277661,1752927061056,-151.0,0.00019472,2]
[373277663,1752927061065,-164.564974,0.00019472,2]
[373277665,1752927061075,-1000.0,0.00019476,2]
[373277667,1752927061085,-230.394089,0.00019491,2]
[373277669,1752927061094,-407.28226249,0.00019564,2]
[373277670,1752927061104,-460.0,0.00019571,2]
[373277673,1752927061114,-460.0,0.00019571,2]
[373277674,1752927061124,-460.0,0.00019571,2]
[373277676,1752927061133,-460.0,0.00019571,2]
[373277678,1752927061143,-334.72981043,0.00019571,2]
[373277680,1752927061154,-151.982926,0.00019572,2]
[373277682,1752927061167,-151.0,0.00019572,2]
[373277685,1752927061176,-771.83,0.00019573,2]
[373277687,1752927061186,-151.0,0.00019652,2]
[373277688,1752927061195,-151.0,0.00019652,2]
[373277690,1752927061206,-151.0,0.00019652,2]
[373277692,1752927061215,-1179.88427532,0.00019654,2]
[373277694,1752927061225,-2000.0,0.00019654,2]
[373277696,1752927061235,-486.8099699,0.00019654,2]
[373277698,1752927061244,-5819.01530007,0.00019659,2]
[373277700,1752927061254,-500.0,0.00019689,2]
[373277702,1752927061264,-500.0,0.00019689,2]
[373277704,1752927061274,-500.0,0.00019689,2]
[373277706,1752927061283,-968.0,0.00019693,2]
[373277708,1752927061292,-151.0,0.00019693,2]
[373277710,1752927061302,-151.0,0.00019693,2]
[373277712,1752927061311,-500.0,0.000197,2]
[373277714,1752927061320,-501.4575332,0.000197,2]
[373277716,1752927061330,-500.0,0.000197,2]
[373277718,1752927061339,-1000.0,0.00019738,2]
[373277720,1752927061349,-460.0,0.00019743,2]
[373277722,1752927061359,-1226.27,0.00019743,2]
[373277724,1752927061368,-3070.5,0.00019743,2]
[373277726,1752927061378,-460.0,0.00019743,2]
[373277728,1752927061388,-460.0,0.00019744,2]
[373277730,1752927061397,-3208.37,0.00019744,2]
[373277732,1752927061407,-484.39,0.00019744,2]
[373277734,1752927061417,-460.0,0.00019744,2]
[373277736,1752927061427,-460.0,0.00019744,2]
[373277738,1752927061438,-1935.27,0.00019744,2]
[373277740,1752927061447,-989.97,0.00019744,2]
[373277742,1752927061462,-460.0,0.00019744,2]
[373277744,1752927061473,-978.7,0.00019744,2]
[373277746,1752927061483,-460.0,0.00019744,2]
[373277748,1752927061493,-460.0,0.00019744,2]
[373277750,1752927061503,-460.0,0.00019744,2]
[373277752,1752927061513,-521.57,0.00019744,2]
[373277754,1752927061523,-475.11,0.00019745,2]
[373277756,1752927061533,-460.0,0.00019745,2]
[373277758,1752927061543,-460.0,0.00019745,2]
[373277760,1752927061553,-460.0,0.00019745,2]
[373277762,1752927061563,-460.0,0.00019745,2]
[373277764,1752927061573,-460.0,0.00019745,2]
[373277766,1752927061587,-460.0,0.00019745,2]
[373277768,1752927061597,-460.0,0.00019745,2]
[373277770,1752927061607,-460.0,0.00019745,2]
[373277772,1752927061619,-460.0,0.00019745,2]
[373277774,1752927061629,-460.0,0.00019745,2]
[373277776,1752927061638,-460.0,0.00019745,2]
[373277778,1752927061648,-460.0,0.00019745,2]
[373277780,1752927061661,-594.06,0.00019745,2]
[373277782,1752927061671,-460.0,0.00019745,2]
[373277784,1752927061680,-460.0,0.00019745,2]
[373277786,1752927061691,-460.0,0.00019745,2]
[373277788,1752927061705,-578.82,0.00019745,2]
[373277790,1752927061716,-341.92607919,0.00019745,2]
[373277792,1752927061726,-460.0,0.00019745,2]
[373277794,1752927061736,-460.0,0.00019745,2]
[373277797,1752927061747,-460.0,0.00019745,2]
[373277809,1752927061854,-460.0,0.00019745,2]
[373277811,1752927061866,-460.0,0.00019745,2]
[373277813,1752927061876,-460.0,0.00019745,2]
[373277815,1752927061886,-2812.62,0.00019745,2]
[373277817,1752927061896,-460.0,0.00019745,2]
[373277819,1752927061905,-460.0,0.00019745,2]
[373277821,1752927061915,-460.0,0.00019745,2]
[373277823,1752927061925,-597.35215289,0.00019745,2]
[373277825,1752927061934,-439.37470459,0.00019746,2]
[373277827,1752927061943,-1695.29,0.00019746,2]
[373277829,1752927061955,-460.0,0.00019746,2]
[373277831,1752927061964,-460.0,0.00019746,2]
[373277833,1752927061975,-1501.2,0.00019746,2]
[373277835,1752927061984,-1105.49,0.00019746,2]
[373277837,1752927061995,-571.41,0.00019746,2]
[373277839,1752927062004,-1573.16,0.00019746,2]
[373277841,1752927062015,-460.0,0.00019746,2]
[373277843,1752927062025,-1549.28,0.00019746,2]
[373277845,1752927062034,-415.376,0.00019772,2]
[373277847,1752927062044,-416.784,0.00019772,2]
[373277849,1752927062054,-571.33485352,0.00019787,2]
[373277851,1752927062063,-500.0,0.00019787,2]
[373277853,1752927062073,-460.0,0.00019845,2]
[373277855,1752927062082,-460.0,0.00019845,2]
[373277857,1752927062092,-460.0,0.00019845,2]
[373277859,1752927062101,-460.0,0.00019845,2]
[373277861,1752927062111,-151.0,0.00019845,2]
[373277863,1752927062121,-179.000455,0.00019845,2]
[373277865,1752927062130,-179.000455,0.00019845,2]
[373277867,1752927062144,-951.403261,0.00019845,2]
[373277869,1752927062153,-951.403261,0.00019845,2]
[373277871,1752927062163,-771.83,0.00019847,2]
[373277873,1752927062173,-500.0,0.00019865,2]
[373277875,1752927062183,-500.0,0.00019865,2]
[373277877,1752927062192,-460.0,0.00019883,2]
[373277879,1752927062206,-500.0,0.00019921,2]
[373277881,1752927062215,-501.37630859,0.00019921,2]
[373277883,1752927062225,-5819.01530007,0.00019934,2]
[373277885,1752927062235,-600.0,0.00019937,2]
[373277887,1752927062244,-173.416,0.0002,2]
[373277889,1752927062254,-300.40023785,0.0002,2]
[373277891,1752927062264,-4000.0,0.0002,4]
[373277893,1752927062275,-535.92,0.00020017,2]
[373277895,1752927062285,-1226.27,0.00020017,2]
[373277897,1752927062295,-3070.5,0.00020017,2]
[373277899,1752927062305,-460.0,0.00020018,2]
[373277901,1752927062316,-3208.37,0.00020018,2]
[373277903,1752927062326,-484.39,0.00020018,2]
[373277905,1752927062335,-460.0,0.00020018,2]
[373277907,1752927062344,-460.0,0.00020018,2]
[373277909,1752927062355,-1935.27,0.00020018,2]
[373277911,1752927062364,-989.97,0.00020018,2]
[373277913,1752927062374,-460.0,0.00020018,2]
[373277915,1752927062384,-978.7,0.00020018,2]
[373277917,1752927062393,-460.0,0.00020018,2]
[373277919,1752927062404,-460.0,0.00020018,2]
[373277921,1752927062414,-460.0,0.00020018,2]
[373277923,1752927062424,-521.57,0.00020018,2]
[373277925,1752927062434,-460.0,0.00020019,2]
[373277927,1752927062443,-460.0,0.00020019,2]
[373277929,1752927062454,-460.0,0.00020019,2]
[373277931,1752927062464,-460.0,0.00020019,2]
[373277933,1752927062474,-460.0,0.00020019,2]
[373277935,1752927062484,-460.0,0.00020019,2]
[373277937,1752927062494,-460.0,0.00020019,2]
[373277939,1752927062504,-460.0,0.00020019,2]
[373277941,1752927062513,-460.0,0.00020019,2]
[373277943,1752927062523,-460.0,0.00020019,2]
[373277945,1752927062533,-460.0,0.00020019,2]
[373277947,1752927062543,-583.46,0.00020019,2]
[373277949,1752927062552,-594.06,0.00020019,2]
[373277951,1752927062561,-460.0,0.00020019,2]
[373277953,1752927062572,-460.0,0.00020019,2]
[373277955,1752927062585,-578.82,0.00020019,2]
[373277957,1752927062595,-460.0,0.00020019,2]
[373277959,1752927062604,-460.0,0.00020019,2]
[373277961,1752927062613,-460.0,0.00020019,2]
[373277963,1752927062624,-460.0,0.00020019,2]
[373277965,1752927062634,-460.0,0.00020019,2]
[373277967,1752927062644,-460.0,0.00020019,2]
[373277969,1752927062654,-2812.62,0.00020019,2]
[373277971,1752927062664,-460.0,0.00020019,2]
[373277973,1752927062674,-460.0,0.00020019,2]
[373277975,1752927062684,-460.0,0.00020019,2]
[373277977,1752927062693,-1695.29,0.0002002,2]
[373277979,1752927062706,-460.0,0.0002002,2]
[373277981,1752927062715,-289.22,0.0002002,2]
[373277983,1752927062724,-1501.2,0.0002002,2]
[373277985,1752927062733,-1105.49,0.0002002,2]
[373277987,1752927062743,-571.41,0.0002002,2]
[373277989,1752927062753,-1573.16,0.0002002,2]
[373277991,1752927062763,-460.0,0.0002002,2]
[373277993,1752927062773,-1549.28,0.0002002,2]
[373277995,1752927062782,-1000.0,0.00020023,2]
[373277997,1752927062793,-215.0738,0.00020097,2]
[373277999,1752927062803,-649.403,0.00020109,2]
[373278001,1752927062812,-2156.0,0.00020109,2]
[373278003,1752927062822,-460.0,0.00020119,2]
[373278005,1752927062831,-179.94604781,0.00020119,2]
[373278007,1752927062841,-771.83,0.00020121,2]
[373278009,1752927062851,-500.0,0.0002014,2]
[373278011,1752927062860,-500.0,0.0002014,2]
[373278013,1752927062870,-482.963007,0.00020187,2]
[373278015,1752927062880,-506.81965426,0.00020202,2]
[373278017,1752927062890,-5819.01530007,0.0002021,2]
[373278018,1752927062900,-1500.0,0.00020286,2]
[373278019,1752927062910,-1226.27,0.00020291,2]
[373278020,1752927062921,-3070.5,0.00020291,2]
[373278021,1752927062942,-460.0,0.00020292,2]
[373278022,1752927062956,-3208.37,0.00020292,2]